fUST/lending_fUST_20250601
["ID","MTS","AMOUNT","RATE_DAILY","PERIOD"]
[363517055,1748748651492,-430.0,0.00017534,2]
[363517057,1748748651501,-430.0,0.00017534,2]
[363517059,1748748651510,-453.87818066,0.00017534,2]
[363517061,1748748651519,-430.0,0.00017534,2]
[363517062,1748748651529,-430.0,0.00017534,2]
[363517063,1748748651539,-430.0,0.00017534,2]
[363517064,1748748651549,-430.0,0.00017534,2]
[363517065,1748748651560,-223.53114285,0.00017534,2]
[363517066,1748748651570,-465.0,0.00017534,2]
[363517067,1748748651580,-430.0,0.00017534,2]
[363517068,1748748651589,-430.0,0.00017534,2]
[363517069,1748748651600,-430.0,0.00017534,2]
[363517070,1748748651609,-430.0,0.00017534,2]
[363517071,1748748651619,-430.0,0.00017534,2]
[363517072,1748748651629,-430.0,0.00017534,2]
[363517073,1748748651639,-527.07,0.00017534,2]
[363517074,1748748651650,-151.0,0.00017534,2]
[363517075,1748748651660,-430.0,0.00017534,2]
[363517076,1748748651670,-430.0,0.00017534,2]
[363517077,1748748651680,-151.0,0.00017534,2]
[363517078,1748748651690,-688.59,0.00017534,2]
[363517079,1748748651702,-414.97434865,0.00017534,2]
[363517080,1748748651712,-430.0,0.00017534,2]
[363517081,1748748651721,-430.0,0.00017534,2]
[363517082,1748748651731,-430.0,0.00017534,2]
[363517083,1748748651741,-430.0,0.00017534,2]
[363517084,1748748651751,-430.0,0.00017534,2]
[363517085,1748748651761,-430.0,0.00017534,2]
[363517086,1748748651775,-430.0,0.00017534,2]
[363517087,1748748651785,-1200.71,0.00017534,2]
[363517088,1748748651795,-430.0,0.00017534,2]
[363517089,1748748651804,-430.0,0.00017534,2]
[363517090,1748748651814,-430.0,0.00017534,2]
[363517091,1748748651824,-430.91,0.00017534,2]
[363517092,1748748651834,-430.0,0.00017534,2]
[363517093,1748748651844,-457.848527,0.00017534,2]
[363517095,1748748651854,-457.848527,0.00017534,2]
[363517097,1748748651864,-430.0,0.00017534,2]
[363517098,1748748651874,-430.0,0.00017534,2]
[363517099,1748748651885,-430.0,0.00017534,2]
[363517100,1748748651895,-1307.73,0.00017534,2]
[363517101,1748748651904,-430.0,0.00017534,2]
[363517102,1748748651913,-1644.6,0.00017534,2]
[363517103,1748748651923,-430.0,0.00017534,2]
[363517104,1748748651932,-430.0,0.00017534,2]
[363517105,1748748651941,-752.79,0.00017534,2]
[363517106,1748748651951,-430.0,0.00017534,2]
[363517107,1748748651960,-430.0,0.00017534,2]
[363517108,1748748651969,-430.0,0.00017534,2]
[363517109,1748748651978,-1068.7,0.00017534,2]
[363517110,1748748651988,-430.0,0.00017534,2]
[363517111,1748748651997,-715.84,0.00017534,2]
[363517112,1748748652006,-1149.11783406,0.00017728,2]
[363517113,1748748652015,-4234.21905587,0.00017777,2]
[363517114,1748748652024,-151.0,0.00017797,2]
[363517115,1748748652039,-151.0,0.00017797,2]
[363517116,1748748652048,-1322.167745,0.00017797,2]
[363517117,1748748652058,-1322.167745,0.00017797,2]
[363517118,1748748652066,-151.0,0.00017808,2]
[363517119,1748748652075,-151.0,0.00017808,2]
[363517120,1748748652084,-430.0,0.00017808,2]
[363517121,1748748652093,-430.0,0.00017808,2]
[363517122,1748748652102,-430.0,0.00017808,2]
[363517123,1748748652111,-430.0,0.00017808,2]
[363517124,1748748652121,-430.0,0.00017808,2]
[363517125,1748748652130,-437.83905586,0.00017808,2]
[363517126,1748748652140,-430.0,0.00017808,2]
[363517127,1748748652150,-430.0,0.00017808,2]
[363517128,1748748652159,-430.0,0.00017808,2]
[363517129,1748748652169,-430.0,0.00017808,2]
[363517130,1748748652178,-499.05685102,0.00017808,2]
[363517131,1748748652188,-430.0,0.00017808,2]
[363517132,1748748652198,-440.5408232,0.00017808,2]
[363517133,1748748652208,-437.71069959,0.00017808,2]
[363517134,1748748652217,-430.0,0.00017808,2]
[363517135,1748748652227,-430.0,0.00017808,2]
[363517136,1748748652236,-430.0,0.00017808,2]
[363517137,1748748652246,-451.487413,0.00017808,2]
[363517138,1748748652256,-509.45437375,0.00017808,2]
[363517139,1748748652265,-430.0,0.00017808,2]
[363517140,1748748652275,-430.0,0.00017808,2]
[363517141,1748748652284,-458.82080039,0.00017808,2]
[363517142,1748748652293,-439.02,0.00017808,2]
[363517143,1748748652303,-430.0,0.00017808,2]
[363517144,1748748652312,-150.96260043,0.00017808,2]
[363517145,1748748652322,-430.0,0.00017808,2]
[363517146,1748748652332,-430.0,0.00017808,2]
[363517147,1748748652341,-560.62,0.00017808,2]
[363517148,1748748652351,-447.90357451,0.00017808,2]
[363517149,1748748652361,-430.0,0.00017808,2]
[363517150,1748748652370,-430.0,0.00017808,2]
[363517151,1748748652380,-388.12879558,0.00017808,2]
[363517152,1748748652389,-152.0529585,0.00017808,2]
[363517153,1748748652401,-450.60011431,0.00017808,2]
[363517154,1748748652411,-430.0,0.00017808,2]
[363517156,1748748652420,-563.78743599,0.00017808,2]
[363517158,1748748652430,-151.0,0.00017808,2]
[363517160,1748748652440,-151.0,0.00017808,2]
[363517162,1748748652449,-430.0,0.00017808,2]
[363517164,1748748652458,-430.0,0.00017808,2]
[363517166,1748748652468,-466.45,0.00017808,2]
[363517168,1748748652477,-430.0,0.00017808,2]
[363517170,1748748652487,-430.0,0.00017808,2]
[363517172,1748748652497,-210.04088016,0.00017808,2]
[363517173,1748748652507,-430.0,0.00017808,2]
[363517175,1748748652516,-430.0,0.00017808,2]
[363517176,1748748652526,-430.0,0.00017808,2]
[363517178,1748748652536,-430.0,0.00017808,2]
[363517179,1748748652546,-430.0,0.00017808,2]
[363517181,1748748652557,-494.15168232,0.00017808,2]
[363517183,1748748652567,-462.96306544,0.00017808,2]
[363517185,1748748652577,-1830.1,0.00017808,2]
[363517186,1748748652587,-166.25251055,0.00017808,2]
[363517188,1748748652597,-430.0,0.00017808,2]
[363517190,1748748652607,-430.0,0.00017808,2]
[363517191,1748748652617,-430.0,0.00017808,2]
[363517192,1748748652626,-430.0,0.00017808,2]
[363517193,1748748652635,-637.65,0.00017808,2]
[363517194,1748748652646,-407.62750949,0.00017808,2]
[363517195,1748748652655,-954.35,0.00017808,2]
[363517196,1748748652666,-430.0,0.00017808,2]
[363517197,1748748652676,-401.27767852,0.00017808,2]
[363517198,1748748652686,-430.0,0.00017808,2]
[363517199,1748748652704,-430.0,0.00017808,2]
[363517200,1748748652715,-430.0,0.00017808,2]
[363517201,1748748652725,-660.33,0.00017808,2]
[363517202,1748748652734,-182.85575326,0.00017808,2]
[363517203,1748748652745,-430.0,0.00017808,2]
[363517204,1748748652755,-430.0,0.00017808,2]
[363517205,1748748652765,-430.0,0.00017808,2]
[363517206,1748748652775,-1561.7,0.00017808,2]
[363517207,1748748652784,-430.0,0.00017808,2]
[363517208,1748748652794,-430.0,0.00017808,2]
[363517209,1748748652804,-430.0,0.00017808,2]
[363517210,1748748652814,-430.0,0.00017808,2]
[363517211,1748748652824,-430.0,0.00017808,2]
[363517212,1748748652834,-430.0,0.00017808,2]
[363517213,1748748652844,-452.99,0.00017808,2]
[363517214,1748748652854,-430.0,0.00017808,2]
[363517215,1748748652863,-378.36,0.00017808,2]
[363517216,1748748652873,-378.99850081,0.00017808,2]
[363517217,1748748652883,-430.0,0.00017808,2]
[363517218,1748748652892,-430.0,0.00017808,2]
[363517219,1748748652904,-430.0,0.00017808,2]
[363517220,1748748652998,-430.0,0.00017808,2]
[363517222,1748748653008,-430.0,0.00017808,2]
[363517223,1748748653018,-521.64,0.00017808,2]
[363517224,1748748653028,-527.07,0.00017808,2]
[363517225,1748748653038,-430.0,0.00017808,2]
[363517226,1748748653047,-430.0,0.00017808,2]
[363517227,1748748653057,-688.59,0.00017808,2]
[363517228,1748748653066,-430.0,0.00017808,2]
[363517229,1748748653076,-430.0,0.00017808,2]
[363517230,1748748653085,-430.0,0.00017808,2]
[363517231,1748748653094,-430.0,0.00017808,2]
[363517232,1748748653104,-430.0,0.00017808,2]
[363517233,1748748653113,-430.0,0.00017808,2]
[363517234,1748748653123,-430.0,0.00017808,2]
[363517235,1748748653132,-1200.71,0.00017808,2]
[363517236,1748748653142,-430.0,0.00017808,2]
[363517237,1748748653153,-430.0,0.00017808,2]
[363517238,1748748653163,-400.1512935,0.00017808,2]
[363517239,1748748653173,-430.91,0.00017808,2]
[363517240,1748748653182,-430.0,0.00017808,2]
[363517241,1748748653192,-430.0,0.00017808,2]
[363517242,1748748653202,-430.0,0.00017808,2]
[363517243,1748748653212,-430.0,0.00017808,2]
[363517244,1748748653222,-1307.73,0.00017808,2]
[363517245,1748748653234,-430.0,0.00017808,2]
[363517246,1748748653244,-1644.6,0.00017808,2]
[363517247,1748748653253,-430.0,0.00017808,2]
[363517248,1748748653263,-430.0,0.00017808,2]
[363517249,1748748653273,-752.79,0.00017808,2]
[363517250,1748748653282,-430.0,0.00017808,2]
[363517251,1748748653292,-430.0,0.00017808,2]
[363517253,1748748653301,-430.0,0.00017808,2]
[363517255,1748748653311,-1068.7,0.00017808,2]
[363517256,1748748653320,-430.0,0.00017808,2]
[363517259,1748748653330,-715.84,0.00017808,2]
[363517261,1748748653340,-420.0,0.00017856,2]
[363517263,1748748653350,-1563.35,0.00017873,2]
[363517265,1748748653359,-198.33,0.00018,2]
[363517267,1748748653369,-10059.74233766,0.00018,2]
[363517268,1748748653380,-1149.11783406,0.00018003,2]
[363517269,1748748653389,-161.7055218,0.00018081,2]
[363517270,1748748653401,-2857.8,0.00018082,2]
[363517271,1748748653420,-2857.8,0.00018082,2]
[363517272,1748748653430,-2857.8,0.00018082,2]
[363517273,1748748653439,-2857.8,0.00018082,2]
[363517274,1748748653449,-203.557395,0.00018082,2]
[363517275,1748748653458,-203.557395,0.00018082,2]
[363517276,1748748653468,-430.0,0.00018082,2]
[363517277,1748748653478,-430.0,0.00018082,2]
[363517278,1748748653488,-430.0,0.00018082,2]
[363517279,1748748653498,-430.0,0.00018082,2]
[363517280,1748748653507,-430.0,0.00018082,2]
[363517281,1748748653517,-430.0,0.00018082,2]
[363517282,1748748653527,-151.0,0.00018082,2]
[363517283,1748748653537,-430.0,0.00018082,2]
[363517284,1748748653547,-152.330584,0.00018082,2]
[363517285,1748748653556,-454.87178783,0.00018082,2]
[363517286,1748748653565,-457.797243,0.00018082,2]
[363517287,1748748653574,-457.797243,0.00018082,2]
[363517288,1748748653584,-361.26527999,0.00018082,2]
[363517289,1748748653594,-155.82,0.00018082,2]
[363517290,1748748653603,-430.0,0.00018082,2]
[363517291,1748748653613,-173.94,0.00018082,2]
[363517292,1748748653623,-430.0,0.00018082,2]
[363517293,1748748653634,-430.0,0.00018082,2]
[363517294,1748748653644,-430.0,0.00018082,2]
[363517295,1748748653656,-430.0,0.00018082,2]
[363517296,1748748653666,-430.0,0.00018082,2]
[363517297,1748748653676,-1830.1,0.00018082,2]
[363517298,1748748653687,-430.0,0.00018082,2]
[363517299,1748748653700,-430.0,0.00018082,2]
[363517300,1748748653709,-430.0,0.00018082,2]
[363517301,1748748653719,-420.76,0.00018082,2]
[363517302,1748748653729,-637.65,0.00018082,2]
[363517303,1748748653740,-954.35,0.00018082,2]
[363517304,1748748653750,-430.0,0.00018082,2]
[363517305,1748748653760,-550.65982847,0.00018082,2]
[363517306,1748748653769,-330.846981,0.00018082,2]
[363517307,1748748653780,-430.0,0.00018082,2]
[363517308,1748748653791,-330.846981,0.00018082,2]
[363517309,1748748653801,-660.33,0.00018082,2]
[363517310,1748748653810,-151.0,0.00018082,2]
[363517311,1748748653820,-430.0,0.00018082,2]
[363517312,1748748653830,-430.0,0.00018082,2]
[363517313,1748748653840,-430.0,0.00018082,2]
[363517314,1748748653850,-1561.7,0.00018082,2]
[363517315,1748748653861,-430.0,0.00018082,2]
[363517316,1748748653870,-490.0,0.00018082,2]
[363517317,1748748653880,-881.539958,0.00018082,2]
[363517318,1748748653890,-226.51,0.00018082,2]
[363517319,1748748653899,-881.539958,0.00018082,2]
[363517320,1748748653909,-430.0,0.00018082,2]
[363517321,1748748653920,-429.39,0.00018082,2]
[363517322,1748748653930,-430.0,0.00018082,2]
[363517323,1748748653940,-452.99,0.00018082,2]
[363517324,1748748653950,-414.46421793,0.00018082,2]
[363517325,1748748653960,-430.0,0.00018082,2]
[363517326,1748748653970,-430.0,0.00018082,2]
[363517327,1748748653980,-430.0,0.00018082,2]
[363517328,1748748653989,-430.0,0.00018082,2]
[363517329,1748748653999,-430.0,0.00018082,2]
[363517330,1748748654008,-527.07,0.00018082,2]
[363517331,1748748654018,-430.0,0.00018082,2]
[363517332,1748748654028,-430.0,0.00018082,2]
[363517333,1748748654037,-151.0,0.00018082,2]
[363517334,1748748654047,-688.59,0.00018082,2]
[363517335,1748748654056,-430.0,0.00018082,2]
[363517336,1748748654066,-1639.601407,0.00018082,2]
[363517337,1748748654076,-430.0,0.00018082,2]
[363517338,1748748654085,-1639.601407,0.00018082,2]
[363517339,1748748654094,-430.0,0.00018082,2]
[363517340,1748748654104,-430.0,0.00018082,2]
[363517341,1748748654114,-182.58483918,0.00018082,2]
[363517342,1748748654123,-206.6,0.00018082,2]
[363517343,1748748654132,-430.0,0.00018082,2]
[363517344,1748748654142,-1200.71,0.00018082,2]
[363517345,1748748654152,-430.0,0.00018082,2]
[363517346,1748748654162,-430.0,0.00018082,2]
[363517347,1748748654172,-430.91,0.00018082,2]
[363517348,1748748654181,-430.0,0.00018082,2]
[363517349,1748748654191,-430.0,0.00018082,2]
[363517350,1748748654201,-430.0,0.00018082,2]
[363517351,1748748654211,-430.0,0.00018082,2]
[363517352,1748748654221,-1307.73,0.00018082,2]
[363517353,1748748654231,-430.0,0.00018082,2]
[363517354,1748748654241,-1644.6,0.00018082,2]
[363517355,1748748654251,-430.0,0.00018082,2]
[363517356,1748748654261,-430.0,0.00018082,2]
[363517357,1748748654271,-386.42061065,0.00018082,2]
[363517358,1748748654406,-602.41590639,0.00018082,2]
[363517359,1748748654419,-120.93294696,0.00018082,2]
[363517360,1748748654428,-198.61391821,0.00018082,2]
[363517361,1748748654440,-554.17608179,0.00018082,2]
[363517362,1748748654450,-1109.769464,0.00018082,2]
[363517363,1748748654459,-430.0,0.00018082,2]
[363517364,1748748654469,-430.0,0.00018082,2]
[363517365,1748748654478,-294.58959885,0.00018082,2]
[363517366,1748748654488,-1068.7,0.00018082,2]
[363517367,1748748654497,-715.84,0.00018082,2]
[363517368,1748748654507,-430.0,0.00018082,2]
[363517369,1748748654517,-4234.21905587,0.00018256,2]
[363517370,1748748654527,-1149.11783406,0.00018279,2]
[363517371,1748748654536,-236.406393,0.00018355,2]
[363517372,1748748654546,-236.406393,0.00018355,2]
[363517373,1748748654555,-430.0,0.00018356,2]
[363517374,1748748654565,-444.86,0.00018356,2]
[363517375,1748748654575,-430.0,0.00018356,2]
[363517376,1748748654586,-430.0,0.00018356,2]
[363517377,1748748654596,-382.96466656,0.00018356,2]
[363517378,1748748654605,-430.0,0.00018356,2]
[363517379,1748748654614,-430.0,0.00018356,2]
[363517380,1748748654624,-1830.1,0.00018356,2]
[363517381,1748748654634,-430.0,0.00018356,2]
[363517382,1748748654732,-440.72174057,0.00018356,2]
[363517383,1748748654743,-430.0,0.00018356,2]
[363517384,1748748654753,-637.65,0.00018356,2]
[363517385,1748748654764,-954.35,0.00018356,2]
[363517386,1748748654775,-430.0,0.00018356,2]
[363517387,1748748654785,-537.7260885,0.00018356,2]
[363517388,1748748654796,-660.33,0.00018356,2]
[363517389,1748748654806,-430.0,0.00018356,2]
[363517390,1748748654816,-468.93454107,0.00018356,2]
[363517391,1748748654825,-430.0,0.00018356,2]
[363517392,1748748654836,-1561.7,0.00018356,2]
[363517393,1748748654846,-430.0,0.00018356,2]
[363517394,1748748654855,-312.21,0.00018356,2]
[363517395,1748748654866,-430.0,0.00018356,2]
[363517396,1748748654876,-452.99,0.00018356,2]
[363517397,1748748654885,-430.0,0.00018356,2]
[363517398,1748748654896,-430.0,0.00018356,2]
[363517399,1748748654907,-430.0,0.00018356,2]
[363517400,1748748654916,-430.0,0.00018356,2]
[363517401,1748748654927,-430.0,0.00018356,2]
[363517402,1748748654938,-527.07,0.00018356,2]
[363517403,1748748654948,-430.0,0.00018356,2]
[363517404,1748748654959,-430.0,0.00018356,2]
[363517405,1748748654968,-688.59,0.00018356,2]
[363517406,1748748654978,-430.0,0.00018356,2]
[363517407,1748748654988,-358.16044193,0.00018356,2]
[363517408,1748748654998,-430.0,0.00018356,2]
[363517409,1748748655008,-430.0,0.00018356,2]
[363517410,1748748655018,-430.0,0.00018356,2]
[363517411,1748748655028,-1200.71,0.00018356,2]
[363517412,1748748655039,-430.0,0.00018356,2]
[363517413,1748748655049,-430.0,0.00018356,2]
[363517414,1748748655058,-430.91,0.00018356,2]
[363517415,1748748655068,-454.80896396,0.00018356,2]
[363517416,1748748655077,-430.0,0.00018356,2]
[363517417,1748748655087,-430.0,0.00018356,2]
[363517418,1748748655098,-430.0,0.00018356,2]
[363517419,1748748655108,-1307.73,0.00018356,2]
[363517420,1748748655117,-430.0,0.00018356,2]
[363517421,1748748655127,-1644.6,0.00018356,2]
[363517422,1748748655137,-430.0,0.00018356,2]
[363517423,1748748655148,-430.0,0.00018356,2]
[363517424,1748748655158,-752.79,0.00018356,2]
[363517425,1748748655168,-430.0,0.00018356,2]
[363517426,1748748655178,-430.0,0.00018356,2]
[363517427,1748748655188,-1068.7,0.00018356,2]
[363517428,1748748655199,-715.84,0.00018356,2]
[363517429,1748748655209,-430.0,0.00018356,2]
[363517430,1748748655219,-764.80904589,0.00018399,2]
[363517431,1748748655231,-996.56884979,0.00018399,2]
[363517432,1748748655243,-1433.87270429,0.00018399,2]
[363517433,1748748655253,-587.0,0.0001844,2]
[363517434,1748748655263,-309.6106627,0.00018492,2]
[363517435,1748748655273,-160.0,0.00018548,2]
[363517436,1748748655283,-160.0,0.00018549,2]
[363517437,1748748655292,-160.0,0.00018549,2]
[363517438,1748748655302,-212.80060342,0.00018549,2]
[363517439,1748748655312,-160.0,0.00018549,2]
[363517440,1748748655321,-842.5625,0.00018549,2]
[363517441,1748748655331,-160.0,0.00018549,2]
[363517442,1748748655341,-423.51412927,0.00018549,2]
[363517443,1748748655350,-229.3709046,0.00018549,2]
[363517444,1748748655360,-160.0,0.00018549,2]
[363517445,1748748655371,-1149.11783406,0.00018555,2]
[363517446,1748748655380,-500.0,0.00018589,2]
[363517447,1748748655390,-167.95710933,0.00018589,2]
[363517448,1748748655401,-105.04936456,0.00018589,2]
[363517449,1748748655412,-45.95063544,0.00018589,2]
[363517450,1748748655422,-206.00738317,0.00018589,2]
[363517451,1748748655433,-500.0,0.00018589,2]
[363517452,1748748655443,-151.0,0.00018589,2]
[363517453,1748748655453,-151.0,0.00018616,2]
[363517454,1748748655462,-230.806322,0.00018616,2]
[363517455,1748748655472,-230.806322,0.00018616,2]
[363517456,1748748655482,-151.0,0.00018616,2]
[363517457,1748748655491,-231.469191,0.00018616,2]
[363517458,1748748655501,-351.266207,0.00018616,2]
[363517459,1748748655511,-268.09579684,0.00018616,2]
[363517460,1748748655523,-83.17041016,0.00018616,2]
[363517461,1748748655533,-151.0,0.00018616,2]
[363517462,1748748655543,-151.0,0.00018616,2]
[363517463,1748748655553,-151.0,0.00018616,2]
[363517464,1748748655563,-500.0,0.00018616,2]
[363517465,1748748655573,-151.0,0.00018616,2]
[363517466,1748748655583,-350.07492668,0.00018616,2]
[363517467,1748748655593,-2351.0,0.00018627,2]
[363517468,1748748655603,-430.0,0.0001863,2]
[363517469,1748748655613,-430.0,0.0001863,2]
[363517470,1748748655623,-1830.1,0.0001863,2]
[363517471,1748748655633,-430.0,0.0001863,2]
[363517472,1748748655642,-430.0,0.0001863,2]
[363517473,1748748655652,-637.65,0.0001863,2]
[363517474,1748748655662,-954.35,0.0001863,2]
[363517475,1748748655671,-430.0,0.0001863,2]
[363517476,1748748655682,-660.33,0.0001863,2]
[363517477,1748748655692,-430.0,0.0001863,2]
[363517478,1748748655710,-1561.7,0.0001863,2]
[363517479,1748748655721,-403.91008948,0.0001863,2]
[363517480,1748748655734,-98.61991052,0.0001863,2]
[363517481,1748748655745,-452.99,0.0001863,2]
[363517482,1748748655755,-430.0,0.0001863,2]
[363517483,1748748655764,-430.0,0.0001863,2]
[363517484,1748748655775,-430.0,0.0001863,2]
[363517485,1748748655785,-430.0,0.0001863,2]
[363517486,1748748655794,-527.07,0.0001863,2]
[363517487,1748748655805,-151.0,0.0001863,2]
[363517488,1748748655814,-579.1,0.0001863,2]
[363517489,1748748655825,-430.0,0.0001863,2]
[363517490,1748748655835,-151.0,0.0001863,2]
[363517491,1748748655845,-688.59,0.0001863,2]
[363517492,1748748655855,-360.58645977,0.0001863,2]
[363517493,1748748655900,-430.0,0.00016438,2]
[363517494,1748748655911,-470.0,0.00016712,2]
[363517495,1748748655921,-69.41354023,0.0001863,2]
[363517496,1748748655932,-248.4,0.0001863,2]
[363517497,1748748655941,-1167.78741396,0.0001863,2]
[363517498,1748748655951,-32.92258604,0.0001863,2]
[363517499,1748748655961,-430.0,0.0001863,2]
[363517500,1748748655970,-430.0,0.0001863,2]
[363517501,1748748655980,-430.91,0.0001863,2]
[363517502,1748748655989,-37.54186248,0.0001863,2]
[363517503,1748748656001,-420.30666452,0.0001863,2]
[363517504,1748748656011,-457.848527,0.0001863,2]
[363517505,1748748656021,-430.0,0.0001863,2]
[363517506,1748748656031,-430.0,0.0001863,2]
[363517507,1748748656041,-1307.73,0.0001863,2]
[363517508,1748748656051,-430.0,0.0001863,2]
[363517509,1748748656062,-1644.6,0.0001863,2]
[363517510,1748748656072,-430.0,0.0001863,2]
[363517511,1748748656082,-430.0,0.0001863,2]
[363517512,1748748656092,-752.79,0.0001863,2]
[363517513,1748748656102,-430.0,0.0001863,2]
[363517514,1748748656112,-1068.7,0.0001863,2]
[363517515,1748748656122,-715.84,0.0001863,2]
[363517516,1748748656132,-430.0,0.0001863,2]
[363517517,1748748656142,-500.0,0.00018644,2]
[363517518,1748748656152,-151.0,0.00018644,2]
[363517519,1748748656162,-184.16884427,0.00018671,2]
[363517520,1748748656171,-151.0,0.00018671,2]
[363517521,1748748656181,-2345.02,0.00018685,2]
[363517522,1748748656190,-151.0,0.00018699,2]
[363517523,1748748656200,-245.0,0.00018726,2]
[363517524,1748748656210,-1149.11783406,0.00018831,2]
[363517525,1748748656220,-151.0,0.00018855,2]
[363517526,1748748656229,-151.0,0.00018855,2]
[363517527,1748748656239,-1764.3540353,0.000189,2]
[363517528,1748748656249,-151.0,0.00018904,2]
[363517529,1748748656258,-151.0,0.00018904,2]
[363517530,1748748656268,-1322.167745,0.00018904,2]
[363517531,1748748656278,-1322.167745,0.00018904,2]
[363517532,1748748656287,-430.0,0.00018904,2]
[363517533,1748748656297,-151.0,0.00018904,2]
[363517534,1748748656307,-187.568004,0.00018904,2]
[363517535,1748748656317,-1830.1,0.00018904,2]
[363517536,1748748656327,-430.0,0.00018904,2]
[363517537,1748748656337,-430.0,0.00018904,2]
[363517538,1748748656347,-637.65,0.00018904,2]
[363517539,1748748656357,-954.35,0.00018904,2]
[363517540,1748748656367,-486.77,0.00018904,2]
[363517541,1748748656377,-660.33,0.00018904,2]
[363517542,1748748656387,-430.0,0.00018904,2]
[363517543,1748748656398,-1561.7,0.00018904,2]
[363517544,1748748656409,-452.99,0.00018904,2]
[363517545,1748748656507,-157.08,0.00018904,2]
[363517546,1748748656518,-430.0,0.00018904,2]
[363517547,1748748656528,-430.0,0.00018904,2]
[363517548,1748748656538,-430.0,0.00018904,2]
[363517549,1748748656548,-527.07,0.00018904,2]
[363517550,1748748656558,-430.0,0.00018904,2]
[363517551,1748748656568,-688.59,0.00018904,2]
[363517552,1748748656579,-430.0,0.00018904,2]
[363517553,1748748656591,-1200.71,0.00018904,2]
[363517554,1748748656601,-430.0,0.00018904,2]
[363517555,1748748656611,-430.0,0.00018904,2]
[363517556,1748748656621,-430.91,0.00018904,2]
[363517557,1748748656632,-430.0,0.00018904,2]
[363517558,1748748656641,-1307.73,0.00018904,2]
[363517559,1748748656651,-430.0,0.00018904,2]
[363517560,1748748656662,-1644.6,0.00018904,2]
[363517561,1748748656672,-430.0,0.00018904,2]
[363517562,1748748656683,-431.01,0.00018904,2]
[363517563,1748748656696,-752.79,0.00018904,2]
[363517564,1748748656707,-152.98192728,0.00018904,2]
[363517565,1748748656717,-1068.7,0.00018904,2]
[363517566,1748748656727,-715.84,0.00018904,2]
[363517567,1748748656737,-430.0,0.00018904,2]
[363517568,1748748656748,-266.10239372,0.00018928,2]
[363517569,1748748656757,-203.557395,0.00019,2]
[363517570,1748748656767,-203.557395,0.00019,2]
[363517571,1748748656778,-1149.11783406,0.00019107,2]
[363517572,1748748656788,-600.0,0.00019164,2]
[363517573,1748748656797,-430.0,0.00019178,2]
[363517574,1748748656806,-500.0,0.00019178,2]
[363517575,1748748656816,-500.0,0.00019178,2]
[363517576,1748748656825,-500.0,0.00019178,2]
[363517577,1748748656834,-500.0,0.00019178,2]
[363517578,1748748656843,-473.32857662,0.00019178,2]
[363517579,1748748656852,-500.0,0.00019178,2]
[363517580,1748748656862,-500.0,0.00019178,2]
[363517581,1748748656871,-500.0,0.00019178,2]
[363517582,1748748656882,-500.0,0.00019178,2]
[363517583,1748748656891,-500.0,0.00019178,2]
[363517584,1748748656901,-383.63895446,0.00019178,2]